Service area,Service sub division,TVBC Service,Expense type,Detailed expense type,TVBC account code,Date Paid,Transaction Reference,Nett Value,Supplier Name
Planning & Development,Economic Development,Estates and Economic Development ,Supplies & Services,Grants & Subscriptions,Grants,03/06/2016,100733,-545,Hampshire Farmers' Markets Ltd
Planning & Development,Economic Development,Estates and Economic Development ,Supplies & Services,Grants & Subscriptions,Grants,08/06/2016,185009,500,Test Valley Textiles
Planning & Development,Economic Development,Estates and Economic Development ,Supplies & Services,Grants & Subscriptions,Grants,29/06/2016,186561,500,Tidal Harness Ltd
Planning & Development,Economic Development,Estates and Economic Development ,Supplies & Services,Grants & Subscriptions,Grants,22/06/2016,186059,500,Personal data - Data Protection Act 1998
Cultural & Related,Culture & Heritage,Community and Leisure ,Supplies & Services,Miscellaneous Expenses,Booking Of Acts,08/06/2016,184959,500,Jon Walsh Blues Band
Central Services to the Public,Management & Support Services,Estates and Economic Development ,Supplies & Services,"Printing, Stationery & General Office Expenses",Stationery,09/06/2016,184819,216.43,Banner Business Services Ltd
Planning & Development,Community Development,Estates and Economic Development ,Supplies & Services,"Printing, Stationery & General Office Expenses",Stationery,09/06/2016,184819,95.04,Banner Business Services Ltd
Cultural & Related,Culture & Heritage,Estates and Economic Development ,Supplies & Services,"Printing, Stationery & General Office Expenses",Print Consumables,09/06/2016,184819,105.26,Banner Business Services Ltd
Cultural & Related,Open Spaces,Environmental,Supplies & Services,Communications & Computing,Mobile Telephone Charges,23/06/2016,186044,137.95,Vodafone Limited
Environmental & Regulatory,Street Cleansing (not chargeable to Highways),Environmental,Supplies & Services,Communications & Computing,Mobile Telephone Charges,23/06/2016,186044,137.99,Vodafone Limited
Environmental & Regulatory,Waste management,Environmental,Supplies & Services,Communications & Computing,Mobile Telephone Charges,23/06/2016,186044,88.4,Vodafone Limited
Central Services to the Public,Management & Support Services,Environmental,Supplies & Services,Communications & Computing,Mobile Telephone Charges,23/06/2016,186044,26.35,Vodafone Limited
Central Services to the Public,Management & Support Services,Environmental,Supplies & Services,Communications & Computing,Mobile Telephone Charges,23/06/2016,186044,30.96,Vodafone Limited
Central Services to the Public,Management & Support Services,HR Services,Employees,Indirect Employee Expenses,Temporary Staff,09/06/2016,184969,425,Hays Specialist Recruitment
Cultural & Related,Open Spaces,Environmental,Supplies & Services,Communications & Computing,Mobile Telephone Charges,02/06/2016,184493,136.38,Vodafone Limited
Environmental & Regulatory,Street Cleansing (not chargeable to Highways),Environmental,Supplies & Services,Communications & Computing,Mobile Telephone Charges,02/06/2016,184493,140.44,Vodafone Limited
Environmental & Regulatory,Waste management,Environmental,Supplies & Services,Communications & Computing,Mobile Telephone Charges,02/06/2016,184493,91.87,Vodafone Limited
Central Services to the Public,Management & Support Services,Environmental,Supplies & Services,Communications & Computing,Mobile Telephone Charges,02/06/2016,184493,26.23,Vodafone Limited
Central Services to the Public,Management & Support Services,Environmental,Supplies & Services,Communications & Computing,Mobile Telephone Charges,02/06/2016,184493,30.52,Vodafone Limited
Central Services to the Public,Management & Support Services,Revenues,Employees,Indirect Employee Expenses,Temporary Staff,30/06/2016,186387,429.76,Personnel Selection
Planning & Development,Planning Policy,Plan Pol & Transport,Supplies & Services,"Printing, Stationery & General Office Expenses",Stationery,16/06/2016,184824,130.39,Banner Business Services Ltd
"Highways, Roads & Transport",Highways and roads - maintenance,Plan Pol & Transport,Supplies & Services,"Printing, Stationery & General Office Expenses",Stationery,16/06/2016,184824,108.64,Banner Business Services Ltd
"Highways, Roads & Transport",Parking Services,Plan Pol & Transport,Supplies & Services,"Printing, Stationery & General Office Expenses",Stationery,16/06/2016,184824,43.45,Banner Business Services Ltd
"Highways, Roads & Transport",Parking Services,Plan Pol & Transport,Supplies & Services,"Printing, Stationery & General Office Expenses",Stationery,16/06/2016,184824,152.09,Banner Business Services Ltd
Environmental & Regulatory,Waste management,Environmental,Employees,Indirect Employee Expenses,Agency Staff - Waged Posts,16/06/2016,185391,436.9,The Works Staffing Solutions Ltd
Central Services to the Public,Management & Support Services,IT,Supplies & Services,Communications & Computing,Software Maintenance,30/06/2016,185577,439,Dotted Eyes Ltd
Planning & Development,Planning Policy,Plan Pol & Transport,Supplies & Services,Miscellaneous Expenses,Advertising,09/06/2016,184454,439.2,Newsquest Media Group Ltd
Central Services to the Public,Management & Support Services,Revenues,Employees,Indirect Employee Expenses,Temporary Staff,09/06/2016,184828,442.4,Personnel Selection
Cultural & Related,Culture & Heritage,Estates and Economic Development ,Supplies & Services,Miscellaneous Expenses,Waste Collection,16/06/2016,185368,132.59,Suez Recycling And Recovery Uk Ltd
Central Services to the Public,Management & Support Services,Estates and Economic Development ,Supplies & Services,Miscellaneous Expenses,Waste Collection,16/06/2016,185368,315.6,Suez Recycling And Recovery Uk Ltd
Environmental & Regulatory,Waste management,Environmental,Employees,Indirect Employee Expenses,Agency Staff - Waged Posts,16/06/2016,185581,457.92,The Works Staffing Solutions Ltd
Central Services to the Public,Management & Support Services,Estates and Economic Development ,Third Party Payments,Other Establishments,Private Contractors,02/06/2016,184364,458.14,Andover Glass Works Ltd
Cultural & Related,Culture & Heritage,Community and Leisure ,Supplies & Services,Services,Tutors,16/06/2016,185415,550,Personal data - Data Protection Act 1998
Environmental & Regulatory,Waste management,Environmental,Employees,Indirect Employee Expenses,Agency Staff - Waged Posts,16/06/2016,185359,460.8,The Works Staffing Solutions Ltd
Environmental & Regulatory,Waste management,Environmental,Employees,Indirect Employee Expenses,Agency Staff - Waged Posts,23/06/2016,186205,462.38,Employment Partners Ltd
Cultural & Related,Open Spaces,Environmental,Transport Related Expenditure,Direct Transport Costs,Repair Materials,09/06/2016,184547,466.53,R H (Agricultural Engineers) Ltd
Environmental & Regulatory,Waste management,Environmental,Employees,Indirect Employee Expenses,Agency Staff - Waged Posts,16/06/2016,185360,465.12,The Works Staffing Solutions Ltd
Central Services to the Public,Management & Support Services,Revenues,Employees,Indirect Employee Expenses,Temporary Staff,02/06/2016,184350,467.68,Personnel Selection
Central Services to the Public,Management & Support Services,Revenues,Employees,Indirect Employee Expenses,Temporary Staff,23/06/2016,185870,467.68,Personnel Selection
Cultural & Related,Open Spaces,Environmental,Transport Related Expenditure,Direct Transport Costs,Repair Materials,09/06/2016,184329,468.62,T H White Ltd
External Trading Accounts,Business Parks,Estates and Economic Development ,Premises related Expenditure,Grounds Maintenance Costs,Grounds Maintenance Contracts,23/06/2016,185934,473.19,Landmarks Sustainability Ltd
Central Services to the Public,Local Tax Collection,Revenues,Supplies & Services,Services,Professional Fees,09/06/2016,184472,475,Inform Cpi Ltd
Central Services to the Public,Local Tax Collection,Revenues,Supplies & Services,"Printing, Stationery & General Office Expenses",Postage Costs,16/06/2016,185166,17.16,Royal Mail
Central Services to the Public,Local Tax Collection,Revenues,Supplies & Services,"Printing, Stationery & General Office Expenses",Postage Costs,16/06/2016,185166,154.96,Royal Mail
Housing Services,Housing Benefits ,Revenues,Supplies & Services,"Printing, Stationery & General Office Expenses",Postage Costs,16/06/2016,185166,152.43,Royal Mail
Central Services to the Public,Local Tax Collection,Revenues,Supplies & Services,"Printing, Stationery & General Office Expenses",Postage Costs,16/06/2016,185166,152.42,Royal Mail
Environmental & Regulatory,Regulatory Services,Legal & Democratic,Supplies & Services,Miscellaneous Expenses,Data Access Requests,16/06/2016,185414,552.5,Harwin Associates Ltd
"Highways, Roads & Transport",Highways and roads - maintenance,Plan Pol & Transport,Supplies & Services,"Equipment, Furniture & Materials",Purchase Equip + Materials,30/06/2016,186668,480,Knight Engineering
Central Services to the Public,Management & Support Services,Estates and Economic Development ,Premises related Expenditure,Energy Costs,Gas,23/06/2016,185938,497.96,Total Gas & Power Ltd
Central Services to the Public,Management & Support Services,Revenues,Supplies & Services,"Equipment, Furniture & Materials",Equipment Lease Rentals,09/06/2016,185087,498.29,Ricoh Uk Ltd
Planning & Development,Community Development,Community and Leisure ,Supplies & Services,Grants & Subscriptions,Grants,29/06/2016,186594,600,North Baddesley Scout Group
Central Services to the Public,Management & Support Services,Finance,Supplies & Services,Services,Vat Consultancy,09/06/2016,184799,500,Lavat Consulting Limited
Cultural & Related,Culture & Heritage,Community and Leisure ,Supplies & Services,Miscellaneous Expenses,Booking Of Acts,30/06/2016,186168,500,Theatre Of Widdershins
"Highways, Roads & Transport",Highways and roads - maintenance,Plan Pol & Transport,Premises related Expenditure,Repairs Alterations & Maintenance of Buildings,Highways Repairs,16/06/2016,185157,500,Conway & Co
Central Services to the Public,Elections,Legal & Democratic,Premises related Expenditure,Rents,Premises Hire,02/06/2016,183237,600,Raods
Planning & Development,Community Development,Community and Leisure ,Supplies & Services,Grants & Subscriptions,Grants,29/06/2016,186567,600,Test Valley Arts Foundation
Central Services to the Public,Management & Support Services,IT,Supplies & Services,Communications & Computing,Computer Hardware,02/06/2016,183982,501.89,Storm Technologies
Central Services to the Public,Management & Support Services,Environmental,Transport Related Expenditure,Direct Transport Costs,Repair Materials,09/06/2016,184069,502.8,Johnston Sweepers Ltd
Environmental & Regulatory,Regulatory Services,Estates and Economic Development ,Supplies & Services,"Equipment, Furniture & Materials",Purchase Equip + Materials,09/06/2016,185142,502.98,Cjs Portsmouth Ltd
Cultural & Related,Open Spaces,Environmental,Third Party Payments,Other Establishments,Private Contractors,02/06/2016,184369,604.12,Ivan Gibson Agricultural Contractor
Cultural & Related,Open Spaces,Community and Leisure ,Premises related Expenditure,Grounds Maintenance Costs,Gm - Additional Works,16/06/2016,185572,505,Personal data - Data Protection Act 1998
Cultural & Related,Open Spaces,Environmental,Transport Related Expenditure,Direct Transport Costs,Petrol,23/06/2016,185956,505.47,Fuel Card Services Ltd
Central Services to the Public,Management & Support Services,Estates and Economic Development ,Third Party Payments,Other Establishments,Contract Catering,02/06/2016,184335,508.95,Edwards And Ward Ltd
Central Services to the Public,Management & Support Services,IT,Supplies & Services,Grants & Subscriptions,Subscriptions,16/06/2016,181706,509.25,Northern Housing Consortium Ltd
Cultural & Related,Open Spaces,Environmental,Transport Related Expenditure,Direct Transport Costs,Petrol,16/06/2016,185167,511.36,Fuel Card Services Ltd
Central Services to the Public,Local Tax Collection,Revenues,Supplies & Services,"Printing, Stationery & General Office Expenses",Stationery,09/06/2016,184817,48.41,Banner Business Services Ltd
Central Services to the Public,Local Tax Collection,Revenues,Supplies & Services,Communications & Computing,Purchase Of Telephones ,09/06/2016,184817,9,Banner Business Services Ltd
Central Services to the Public,Local Tax Collection,Revenues,Supplies & Services,"Printing, Stationery & General Office Expenses",Stationery,09/06/2016,184817,193.62,Banner Business Services Ltd
Central Services to the Public,Local Tax Collection,Revenues,Supplies & Services,Communications & Computing,Purchase Of Telephones ,09/06/2016,184817,21.01,Banner Business Services Ltd
Housing Services,Housing Benefits ,Revenues,Supplies & Services,"Printing, Stationery & General Office Expenses",Stationery,09/06/2016,184817,121.02,Banner Business Services Ltd
Central Services to the Public,Local Tax Collection,Revenues,Supplies & Services,"Printing, Stationery & General Office Expenses",Stationery,09/06/2016,184817,121.02,Banner Business Services Ltd
Environmental & Regulatory,Waste management,Environmental,Transport Related Expenditure,Direct Transport Costs,Repair Materials,09/06/2016,184119,523.02,Dennis Eagle Ltd
Environmental & Regulatory,Waste management,Environmental,Employees,Indirect Employee Expenses,Agency Staff - Waged Posts,16/06/2016,185356,524.88,Employment Partners Ltd
External Trading Accounts,Business Parks,Estates and Economic Development ,Supplies & Services,Communications & Computing,Land Line Telephone Charges,02/06/2016,184466,28.14,Virgin Media Payments Ltd
Cultural & Related,Culture & Heritage,Estates and Economic Development ,Supplies & Services,Communications & Computing,Land Line Telephone Charges,02/06/2016,184466,39.53,Virgin Media Payments Ltd
Cultural & Related,Culture & Heritage,Estates and Economic Development ,Supplies & Services,Communications & Computing,Land Line Telephone Charges,02/06/2016,184466,39.07,Virgin Media Payments Ltd
Central Services to the Public,Management & Support Services,IT,Supplies & Services,Communications & Computing,Communication Links,02/06/2016,184466,26,Virgin Media Payments Ltd
Central Services to the Public,Management & Support Services,IT,Supplies & Services,Communications & Computing,Communication Links,02/06/2016,184466,67,Virgin Media Payments Ltd
Cultural & Related,Recreation & Sport,Community and Leisure ,Supplies & Services,Communications & Computing,Land Line Telephone Charges,02/06/2016,184466,26,Virgin Media Payments Ltd
Cultural & Related,Recreation & Sport,Community and Leisure ,Supplies & Services,Communications & Computing,Land Line Telephone Charges,02/06/2016,184466,14.66,Virgin Media Payments Ltd
Cultural & Related,Recreation & Sport,Community and Leisure ,Supplies & Services,Communications & Computing,Land Line Telephone Charges,02/06/2016,184466,13,Virgin Media Payments Ltd
Cultural & Related,Culture & Heritage,Community and Leisure ,Supplies & Services,Communications & Computing,Communication Links,02/06/2016,184466,74.81,Virgin Media Payments Ltd
"Highways, Roads & Transport",Parking Services,Plan Pol & Transport,Supplies & Services,Communications & Computing,Alarm Lines,02/06/2016,184466,37.01,Virgin Media Payments Ltd
Central Services to the Public,Management & Support Services,Environmental,Supplies & Services,Communications & Computing,Land Line Telephone Charges,02/06/2016,184466,68.77,Virgin Media Payments Ltd
Central Services to the Public,Emergency Planning,Corporate & Democratic,Supplies & Services,Communications & Computing,Land Line Telephone Charges,02/06/2016,184466,91,Virgin Media Payments Ltd
Central Services to the Public,Management & Support Services,Finance,Supplies & Services,Grants & Subscriptions,Subscriptions,23/06/2016,185915,525,Cipfa
Planning & Development,Development Control,Planning & Building,Employees,Indirect Employee Expenses,Temporary Staff,16/06/2016,184990,525,Oyster Partnership
Cultural & Related,Recreation & Sport,Community and Leisure ,Premises related Expenditure,Grounds Maintenance Costs,Non Contract Tree Works,16/06/2016,183990,325.2,Gristwood & Toms Ltd
Cultural & Related,Open Spaces,Community and Leisure ,Premises related Expenditure,Grounds Maintenance Costs,Non Contract Tree Works,16/06/2016,183990,23.53,Gristwood & Toms Ltd
Cultural & Related,Open Spaces,Community and Leisure ,Premises related Expenditure,Grounds Maintenance Costs,Non Contract Tree Works,16/06/2016,183990,193.96,Gristwood & Toms Ltd
Planning & Development,Economic Development,Estates and Economic Development ,Supplies & Services,Grants & Subscriptions,Grants,03/06/2016,110267,545,Hampshire Farmers' Markets Ltd
Central Services to the Public,Management & Support Services,Estates and Economic Development ,Third Party Payments,Private contractors,Main Contractor Costs,16/06/2016,185407,550,Abp Associates Ltd
Cultural & Related,Open Spaces,Environmental,Third Party Payments,Other Establishments,Private Contractors,16/06/2016,185403,660.7,Ivan Gibson Agricultural Contractor
Environmental & Regulatory,Regulatory Services,Housing and Environmental Health ,Supplies & Services,Grants and subscriptions,Capital Grants,16/06/2016,185671,662.6,S & J Building Services (Uk) Ltd
External Trading Accounts,Business Parks,Estates and Economic Development ,Supplies & Services,Miscellaneous Expenses,Waste Collection,02/06/2016,184452,553.8,Basingstoke Skip Hire & Sthrn Waste Mgt Ltd
Cultural & Related,Open Spaces,Environmental,Supplies & Services,"Equipment, Furniture & Materials",Equipment Lease Rentals,16/06/2016,182574,560,Rentool Ltd
Planning & Development,Economic Development,Estates and Economic Development ,Supplies & Services,Services,Training Courses,01/06/2016,184338,675,Mrt Castings Limited
Central Services to the Public,Management & Support Services,Environmental,Transport Related Expenditure,Direct Transport Costs,Oils,30/06/2016,186419,566.42,Fuchs Lubricants (Uk) Plc
External Trading Accounts,Business Parks,Estates and Economic Development ,Supplies & Services,Miscellaneous Expenses,Waste Collection,16/06/2016,185388,568.75,Basingstoke Skip Hire & Sthrn Waste Mgt Ltd
External Trading Accounts,Business Parks,Estates and Economic Development ,Supplies & Services,Services,Professional Fees,23/06/2016,186082,569.33,Valuation Office Agency
Central Services to the Public,Local Tax Collection,Revenues,Supplies & Services,"Printing, Stationery & General Office Expenses",External Printing,16/06/2016,185578,417,Hound Envelopes Limited
Housing Services,Housing Benefits ,Revenues,Supplies & Services,"Printing, Stationery & General Office Expenses",External Printing,16/06/2016,185578,160.2,Hound Envelopes Limited
Central Services to the Public,Management & Support Services,Estates and Economic Development ,Supplies & Services,"Printing, Stationery & General Office Expenses",Stationery,09/06/2016,182852,285.79,Banner Business Services Ltd
Cultural & Related,Culture & Heritage,Estates and Economic Development ,Supplies & Services,Catering,Non-Contract Catering,09/06/2016,182852,111.21,Banner Business Services Ltd
Central Services to the Public,Management & Support Services,Estates and Economic Development ,Supplies & Services,"Equipment, Furniture & Materials",Purchase Equip + Materials,09/06/2016,182852,199.75,Banner Business Services Ltd
Environmental & Regulatory,Regulatory Services,Housing and Environmental Health ,Supplies & Services,Miscellaneous Expenses,Kennel fees,08/06/2016,183971,579.98,Garston Veterinary Group
Central Services to the Public,Management & Support Services,Environmental,Supplies & Services,"Printing, Stationery & General Office Expenses",Photocopying Costs,09/06/2016,184826,581.38,Ricoh Uk Ltd
Planning & Development,Economic Development,Estates and Economic Development ,Supplies & Services,Services,Training Courses,23/06/2016,185931,700,Airforce Ventilation
Cultural & Related,Open Spaces,Environmental,Third Party Payments,Other Establishments,Private Contractors,23/06/2016,186178,708.76,Ivan Gibson Agricultural Contractor
Central Services to the Public,Elections,Legal & Democratic,Supplies & Services,"Printing, Stationery & General Office Expenses",Postage Costs,30/06/2016,186548,592.9,Financial Data Management Plc
Cultural & Related,Open Spaces,Environmental,Transport Related Expenditure,Direct Transport Costs,External Garages,30/06/2016,186162,197.5,Pitter Commercials Ltd
Cultural & Related,Open Spaces,Environmental,Transport Related Expenditure,Direct Transport Costs,Repair Materials,30/06/2016,186162,395.72,Pitter Commercials Ltd
Central Services to the Public,Management & Support Services,Housing and Environmental Health ,Supplies & Services,Services,Training Courses,02/06/2016,184498,598,Lime Legal Limited
Planning & Development,Economic Development,Estates and Economic Development ,Supplies & Services,Services,Professional Fees,16/06/2016,185444,600,W F Brown Associates Ltd
Planning & Development,Development Control,Planning & Building,Supplies & Services,Services,Project Consultancy - Policy,23/06/2016,185921,600,Reading Agricultural Consultants Ltd
Environmental & Regulatory,Waste management,Environmental,Transport Related Expenditure,Direct Transport Costs,Licences,09/06/2016,182770,728.5,Dennis Eagle Ltd
Cultural & Related,Recreation & Sport,Community and Leisure ,Supplies & Services,"Equipment, Furniture & Materials",Purchase Equip + Materials,09/06/2016,184801,607.1,Bishop Sports & Leisure
Cultural & Related,Open Spaces,Environmental,Employees,Indirect Employee Expenses,Agency Staff - Waged Posts,09/06/2016,185140,272.88,365 Supply Ltd
Environmental & Regulatory,Street Cleansing (not chargeable to Highways),Environmental,Employees,Indirect Employee Expenses,Agency Staff - Waged Posts,09/06/2016,185140,342.25,365 Supply Ltd
Cultural & Related,Culture & Heritage,Community and Leisure ,Supplies & Services,Catering,Caf�/ bar consumables,30/06/2016,186554,21.94,Carlsberg Uk Ltd
Cultural & Related,Culture & Heritage,Community and Leisure ,Supplies & Services,Catering,Non-Contract Catering,30/06/2016,186554,593.66,Carlsberg Uk Ltd
Cultural & Related,Culture & Heritage,Community and Leisure ,Supplies & Services,Catering,Non-Contract Catering,23/06/2016,185885,616.61,Carlsberg Uk Ltd
Environmental & Regulatory,Waste management,Environmental,Transport Related Expenditure,Direct Transport Costs,Repair Materials,09/06/2016,184476,626.66,Dennis Eagle Ltd
Planning & Development,Development Control,Planning & Building,Employees,Indirect Employee Expenses,Temporary Staff,16/06/2016,184992,630,Oyster Partnership
Central Services to the Public,Management & Support Services,Estates and Economic Development ,Third Party Payments,Other Establishments,Private Contractors,23/06/2016,182568,650,Water Matters (Uk) Ltd
Central Services to the Public,Management & Support Services,IT,Employees,Indirect Employee Expenses,Temporary Staff,30/06/2016,185138,660,Gcs Recruitment Services
Environmental & Regulatory,Street Cleansing (not chargeable to Highways),Environmental,Supplies & Services,Services,Training Courses,23/06/2016,186036,792,Highways And Safety Training Ltd
Cultural & Related,Culture & Heritage,Community and Leisure ,Supplies & Services,Services,Project Consultancy - Policy,30/06/2016,186552,800,Personal data - Data Protection Act 1998
Central Services to the Public,Management & Support Services,Estates and Economic Development ,Supplies & Services,"Printing, Stationery & General Office Expenses",Photocopying Costs,02/06/2016,183742,668.24,Ricoh Uk Ltd
Cultural & Related,Culture & Heritage,Community and Leisure ,Supplies & Services,"Equipment, Furniture & Materials",Purchase Equip + Materials,16/06/2016,184978,675.42,Hawthorn Theatrical Ltd
Cultural & Related,Culture & Heritage,Community and Leisure ,Supplies & Services,Miscellaneous Expenses,Booking Of Acts,30/06/2016,186550,684.67,Brian Shaw Concerts
Central Services to the Public,Management & Support Services,Estates and Economic Development ,Supplies & Services,"Equipment, Furniture & Materials",Purchase Materials (Job Cost),02/06/2016,184363,693.38,Edmundson Electrical Ltd
External Trading Accounts,Economic Development,Estates and Economic Development ,Premises related Expenditure,Energy Costs,Electricity,02/06/2016,184087,694.43,Npower
Environmental & Regulatory,Waste management,Environmental,Employees,Indirect Employee Expenses,Agency Staff - Waged Posts,23/06/2016,186204,708.75,Employment Partners Ltd
Central Services to the Public,Management & Support Services,Finance,Supplies & Services,"Printing, Stationery & General Office Expenses",Postage Costs,16/06/2016,185430,718.25,Whistl Uk Ltd
Cultural & Related,Culture & Heritage,Community and Leisure ,Supplies & Services,Services,Professional Fees,16/06/2016,185633,875,Personal data - Data Protection Act 1998
Central Services,Corporate & Democratic Core,Corporate & Democratic,Supplies & Services,Grants & Subscriptions,Subscriptions,09/06/2016,179472,735,Improvement And Development Agency
Central Services to the Public,Emergency Planning,Corporate & Democratic,Supplies & Services,Miscellaneous Expenses,Emergency Planning Costs,02/06/2016,183940,886.36,Hampshire County Council
Central Services to the Public,Management & Support Services,Legal & Democratic,Employees,Indirect Employee Expenses,Agency Staff - Waged Posts,09/06/2016,184753,740,Venn Group Ltd
Cultural & Related,Open Spaces,Environmental,Supplies & Services,Communications & Computing,Telephone Tracking System,09/06/2016,184441,740,Ctrack Uk Limited
Central Services to the Public,Management & Support Services,IT,Supplies & Services,Communications & Computing,Hardware Maintenance,30/06/2016,185912,740.62,Quadrant Security Group Ltd
External Trading Accounts,Economic Development,Estates and Economic Development ,Premises related Expenditure,Energy Costs,Electricity,02/06/2016,184088,741.71,Npower
Central Services to the Public,Management & Support Services,IT,Supplies & Services,Communications & Computing,Land Line Telephone Charges,16/06/2016,185371,745.65,Virgin Media Payments Ltd
Central Services,Corporate & Democratic Core,Corporate & Democratic,Supplies & Services,Services,Professional Advice,16/06/2016,185647,750,Dc Commerical Solicitors
External Trading Accounts,Economic Development,Estates and Economic Development ,Premises related Expenditure,Energy Costs,Electricity,02/06/2016,184089,765.87,Npower
Environmental & Regulatory,Waste management,Environmental,Transport Related Expenditure,Direct Transport Costs,Repair Materials,16/06/2016,184958,765.9,Dennis Eagle Ltd
Cultural & Related,Culture & Heritage,Community and Leisure ,Supplies & Services,Miscellaneous Expenses,Booking Of Acts,02/06/2016,184352,767.08,Personal data - Data Protection Act 1998
Central Services to the Public,Management & Support Services,Finance,Supplies & Services,"Printing, Stationery & General Office Expenses",Postage Costs,30/06/2016,186418,771.49,Whistl Uk Ltd
Central Services to the Public,Management & Support Services,Revenues,Supplies & Services,"Equipment, Furniture & Materials",Maintenance Equip + Materials,02/06/2016,184114,785.7,Pitney Bowes Limited
Environmental & Regulatory,Community Development,Community and Leisure ,Supplies & Services,"Equipment, Furniture & Materials",Purchase Equip + Materials,09/06/2016,184821,503.04,Banner Business Services Ltd
Central Services to the Public,Management & Support Services,Community and Leisure ,Supplies & Services,"Printing, Stationery & General Office Expenses",Stationery,09/06/2016,184821,289.72,Banner Business Services Ltd
Central Services to the Public,Management & Support Services,Environmental,Supplies & Services,"Equipment, Furniture & Materials",Maintenance Equip + Materials,30/06/2016,186179,794.09,Totalkare H.D.W.S Ltd
Central Services to the Public,Management & Support Services,Estates and Economic Development ,Third Party Payments,Other Establishments,Private Contractors,02/06/2016,184131,808.35,Btu Installation & Maintenance Ltd
Cultural & Related,Open Spaces,Environmental,Third Party Payments,Other Establishments,Private Contractors,09/06/2016,184754,982.58,Ivan Gibson Agricultural Contractor
Cultural & Related,Culture & Heritage,Community and Leisure ,Supplies & Services,Catering,Caf�/ bar consumables,02/06/2016,182749,9.47,Carlsberg Uk Ltd
Cultural & Related,Culture & Heritage,Community and Leisure ,Supplies & Services,Catering,Non-Contract Catering,02/06/2016,182749,810.03,Carlsberg Uk Ltd
Environmental & Regulatory,Waste management,Environmental,Employees,Indirect Employee Expenses,Agency Staff - Waged Posts,16/06/2016,185582,822.18,The Works Staffing Solutions Ltd
Central Services to the Public,Management & Support Services,IT,Employees,Indirect Employee Expenses,Temporary Staff,02/06/2016,183210,825,Gcs Recruitment Services
Central Services to the Public,Management & Support Services,IT,Employees,Indirect Employee Expenses,Temporary Staff,02/06/2016,184113,825,Gcs Recruitment Services
Central Services to the Public,Management & Support Services,IT,Employees,Indirect Employee Expenses,Temporary Staff,23/06/2016,185626,825,Gcs Recruitment Services
Planning & Development,Community Development,Community and Leisure ,Supplies & Services,Grants & Subscriptions,Grants,29/06/2016,186593,1000,Abbotts Ann Village Shop Association
Planning & Development,Development Control,Planning & Building,Supplies & Services,Miscellaneous Expenses,Planning Appeal Costs,09/06/2016,184787,1000,Cornerstone Barristers
Planning & Development,Development Control,Planning & Building,Supplies & Services,Miscellaneous Expenses,Planning Appeal Costs,30/06/2016,185169,1000,Cornerstone Barristers
Planning & Development,Community Development,Community and Leisure ,Supplies & Services,Grants & Subscriptions,Grants,30/06/2016,186683,1000,Penton Mewsey Parish Council
Planning & Development,Economic Development,Estates and Economic Development ,Supplies & Services,Services,Training Courses,02/06/2016,184365,1000,3fd Productdesigndevelopment
Central Services to the Public,Management & Support Services,Legal & Democratic,Employees,Indirect Employee Expenses,Agency Staff - Waged Posts,23/06/2016,185871,840,Venn Group Ltd
Central Services to the Public,Management & Support Services,Finance,Supplies & Services,"Printing, Stationery & General Office Expenses",Postage Costs,09/06/2016,184980,846.97,Whistl Uk Ltd
Central Services to the Public,Management & Support Services,Estates and Economic Development ,Supplies & Services,Communications & Computing,Telephone Tracking System,23/06/2016,185422,60,Ctrack Uk Limited
Environmental & Regulatory,Regulatory Services,Estates and Economic Development ,Supplies & Services,Communications & Computing,Telephone Tracking System,23/06/2016,185422,20,Ctrack Uk Limited
Cultural & Related,Open Spaces,Environmental,Supplies & Services,Communications & Computing,Telephone Tracking System,23/06/2016,185422,280,Ctrack Uk Limited
Environmental & Regulatory,Street Cleansing (not chargeable to Highways),Environmental,Supplies & Services,Communications & Computing,Telephone Tracking System,23/06/2016,185422,230,Ctrack Uk Limited
Environmental & Regulatory,Waste management,Environmental,Supplies & Services,Communications & Computing,Telephone Tracking System,23/06/2016,185422,210,Ctrack Uk Limited
Environmental & Regulatory,Waste management,Environmental,Supplies & Services,Communications & Computing,Telephone Tracking System,23/06/2016,185422,20,Ctrack Uk Limited
Central Services to the Public,Management & Support Services,Environmental,Supplies & Services,Communications & Computing,Telephone Tracking System,23/06/2016,185422,30,Ctrack Uk Limited
Cultural & Related,Recreation & Sport,Estates and Economic Development ,Premises related Expenditure,Water Services,Water And Sewerage Charges,09/06/2016,184995,1027.66,Southern Water
Environmental & Regulatory,Waste management,Environmental,Transport Related Expenditure,Direct Transport Costs,Repair Materials,16/06/2016,185367,858.6,Dennis Eagle Ltd
Environmental & Regulatory,Regulatory Services,Housing and Environmental Health ,Supplies & Services,Miscellaneous Expenses,Kennel fees,16/06/2016,185439,860,Anton Vets Ltd
Central Services to the Public,Management & Support Services,Estates and Economic Development ,Supplies & Services,"Equipment, Furniture & Materials",Equipment Hire,09/06/2016,185118,862.5,Crown Water & Coffee
Cultural & Related,Open Spaces,Environmental,Transport Related Expenditure,Direct Transport Costs,Repair Materials,16/06/2016,185348,869.98,T H White Ltd
Central Services to the Public,Management & Support Services,Estates and Economic Development ,Third Party Payments,Other Establishments,Private Contractors,16/06/2016,185471,875,Barron & Partners
"Highways, Roads & Transport",Highways and roads - maintenance,Plan Pol & Transport,Premises related Expenditure,Repairs Alterations & Maintenance of Buildings,Highways Repairs,09/06/2016,184796,875,Squire Patton Boggs (Uk) Llp
"Highways, Roads & Transport",Public Transport,Plan Pol & Transport,Third Party Payments,Transport Operators in Respect of Concessionary Fares,Voluntary Orgs Reimbursement,30/06/2016,186674,1056.6,Romsey Good Neighbours
Central Services to the Public,Elections,Legal & Democratic,Supplies & Services,"Printing, Stationery & General Office Expenses",Postage Costs,23/06/2016,185858,1004.74,Royal Mail
Cultural & Related,Culture & Heritage,Community and Leisure ,Supplies & Services,Catering,Caf�/ bar consumables,30/06/2016,183912,9.47,Carlsberg Uk Ltd
Cultural & Related,Culture & Heritage,Community and Leisure ,Supplies & Services,Catering,Non-Contract Catering,30/06/2016,183912,873.13,Carlsberg Uk Ltd
Environmental & Regulatory,Waste management,Environmental,Transport Related Expenditure,Direct Transport Costs,Repair Materials,30/06/2016,186182,889.58,Dennis Eagle Ltd
Central Services to the Public,Management & Support Services,Environmental,Transport Related Expenditure,Direct Transport Costs,Workshop Consumables,30/06/2016,186415,193.21,M D Services
Central Services to the Public,Management & Support Services,Environmental,Transport Related Expenditure,Direct Transport Costs,Repair Materials,30/06/2016,186415,693.48,M D Services
Central Services to the Public,Management & Support Services,Environmental,Supplies & Services,"Equipment, Furniture & Materials",Purchase Tools,30/06/2016,186415,5.1,M D Services
Environmental & Regulatory,Waste management,Environmental,Transport Related Expenditure,Direct Transport Costs,Repair Materials,16/06/2016,185071,893.84,Terberg Matec Uk Limited
Environmental & Regulatory,Street Cleansing (not chargeable to Highways),Environmental,Supplies & Services,"Equipment, Furniture & Materials",Purchase Equip + Materials,16/06/2016,184977,894.5,Sweeperhire
Central Services to the Public,Management & Support Services,Estates and Economic Development ,Premises related Expenditure,Repairs Alterations & Maintenance of Buildings,Building Maint - Non Estates,02/06/2016,184317,902.5,Btu Installation & Maintenance Ltd
"Highways, Roads & Transport",Parking Services,Plan Pol & Transport,Supplies & Services,"Equipment, Furniture & Materials",Purchase Equip + Materials,23/06/2016,184751,912.15,Cale Briparc Ltd
Central Services to the Public,Management & Support Services,Environmental,Supplies & Services,Services,Insurance,16/06/2016,185170,1095,Aon Uk Ltd
Central Services to the Public,Management & Support Services,Environmental,Transport Related Expenditure,Direct Transport Costs,Repair Materials,16/06/2016,185145,955.4,Dennis Eagle Ltd
Central Services to the Public,Management & Support Services,Estates and Economic Development ,Premises related Expenditure,Energy Costs,Gas,23/06/2016,185946,962.4,Total Gas & Power Ltd
Central Services to the Public,Management & Support Services,Estates and Economic Development ,Transport Related Expenditure,Direct Transport Costs,Repair Materials,23/06/2016,185636,10.7,M D Services
Environmental & Regulatory,Regulatory Services,Estates and Economic Development ,Transport Related Expenditure,Direct Transport Costs,Repair Materials,23/06/2016,185636,4.28,M D Services
Environmental & Regulatory,Regulatory Services,Housing and Environmental Health ,Transport Related Expenditure,Direct Transport Costs,Repair Materials,23/06/2016,185636,4.28,M D Services
Environmental & Regulatory,Regulatory Services,Housing and Environmental Health ,Transport Related Expenditure,Direct Transport Costs,Repair Materials,23/06/2016,185636,4.28,M D Services
Environmental & Regulatory,Community Development,Community and Leisure ,Transport Related Expenditure,Direct Transport Costs,Repair Materials,23/06/2016,185636,4.28,M D Services
"Highways, Roads & Transport",Parking Services,Plan Pol & Transport,Transport Related Expenditure,Direct Transport Costs,Repair Materials,23/06/2016,185636,4.28,M D Services
Cultural & Related,Open Spaces,Environmental,Transport Related Expenditure,Direct Transport Costs,Repair Materials,23/06/2016,185636,223.46,M D Services
Environmental & Regulatory,Street Cleansing (not chargeable to Highways),Environmental,Transport Related Expenditure,Direct Transport Costs,Repair Materials,23/06/2016,185636,189.22,M D Services
Environmental & Regulatory,Waste management,Environmental,Transport Related Expenditure,Direct Transport Costs,Repair Materials,23/06/2016,185636,116.38,M D Services
Environmental & Regulatory,Waste management,Environmental,Transport Related Expenditure,Direct Transport Costs,Repair Materials,23/06/2016,185636,46.42,M D Services
Central Services to the Public,Management & Support Services,Environmental,Transport Related Expenditure,Direct Transport Costs,Workshop Consumables,23/06/2016,185636,215.59,M D Services
Central Services to the Public,Management & Support Services,Environmental,Transport Related Expenditure,Direct Transport Costs,Repair Materials,23/06/2016,185636,132.83,M D Services
Central Services to the Public,Management & Support Services,Environmental,Transport Related Expenditure,Direct Transport Costs,Repair Materials,23/06/2016,185636,6.42,M D Services
"Highways, Roads & Transport",Public Transport,Plan Pol & Transport,Third Party Payments,Transport Operators in Respect of Concessionary Fares,Voluntary Orgs Reimbursement,16/06/2016,185667,1157,Romsey Good Neighbours
Cultural & Related,Recreation & Sport,Community and Leisure ,Supplies & Services,"Equipment, Furniture & Materials",Purchase Equip + Materials,02/06/2016,182571,970.5,Morleys Of Bicester
Planning & Development,Development Control,Planning & Building,Supplies & Services,Services,Project Consultancy - Policy,23/06/2016,185920,971,Reading Agricultural Consultants Ltd
Housing Services,Housing Benefits ,Revenues,Employees,Indirect Employee Expenses,Temporary Staff,16/06/2016,185419,971.5,Eden Brown Ltd
Environmental & Regulatory,Waste management,Environmental,Employees,Indirect Employee Expenses,Agency Staff - Waged Posts,09/06/2016,184975,977.06,Employment Partners Ltd
Cultural & Related,Culture & Heritage,Community and Leisure ,Supplies & Services,Miscellaneous Expenses,Promotions / Special Events,09/06/2016,185143,136.06,Mail Boxes Etc
Cultural & Related,Culture & Heritage,Community and Leisure ,Supplies & Services,Services,Project Consultancy - Policy,09/06/2016,185143,874.68,Mail Boxes Etc
Central Services to the Public,Management & Support Services,Revenues,Supplies & Services,Communications & Computing,Computer Software,02/06/2016,184084,1000,Abavus Limited
Cultural & Related,Open Spaces,Environmental,Supplies & Services,"Equipment, Furniture & Materials",Purchases for playgrounds,23/06/2016,185569,1000,Smrs Fabrication & Welding Ltd
Planning & Development,Development Control,Planning & Building,Supplies & Services,Services,Project Consultancy - Policy,02/06/2016,184469,1000,Valuation Office Agency
Environmental & Regulatory,Street Cleansing (not chargeable to Highways),Environmental,Transport Related Expenditure,Direct Transport Costs,Repair Materials,02/06/2016,183887,1007.6,Johnston Sweepers Ltd
Central Services to the Public,Management & Support Services,Finance,Supplies & Services,"Printing, Stationery & General Office Expenses",Postage Costs,23/06/2016,183994,1037.04,Whistl Uk Ltd
Planning & Development,Development Control,Planning & Building,Supplies & Services,Miscellaneous Expenses,Planning Appeal Costs,09/06/2016,184786,1250,Cornerstone Barristers
External Trading Accounts,Business Parks,Estates and Economic Development ,Premises related Expenditure,Repairs Alterations & Maintenance of Buildings,Building Maint - Non Estates,02/06/2016,184320,1050,Bournemouth White Lining Ltd
Central Services to the Public,Management & Support Services,Estates and Economic Development ,Third Party Payments,Other Establishments,Contract Catering,16/06/2016,185076,1061.15,Edwards And Ward Ltd
Central Services to the Public,Management & Support Services,Legal & Democratic,Supplies & Services,"Printing, Stationery & General Office Expenses",Stationery,02/06/2016,180412,1066.24,Banner Business Services Ltd
Housing Services,Housing Benefits ,Revenues,Employees,Indirect Employee Expenses,Temporary Staff,30/06/2016,186388,1073,Eden Brown Ltd
"Highways, Roads & Transport",Highways and roads - maintenance,Plan Pol & Transport,Premises related Expenditure,Repairs Alterations & Maintenance of Buildings,Highways Repairs,16/06/2016,185413,1075,Purbeck Civil Engineering Limited
Central Services to the Public,Management & Support Services,Legal & Democratic,Employees,Indirect Employee Expenses,Agency Staff - Waged Posts,02/06/2016,184328,1090,Venn Group Ltd
"Highways, Roads & Transport",Highways and roads - maintenance,Plan Pol & Transport,Premises related Expenditure,Repairs Alterations & Maintenance of Buildings,Highways Repairs,23/06/2016,185879,690,M J Ellis Manufacturing
"Highways, Roads & Transport",Parking Services,Plan Pol & Transport,Premises related Expenditure,Repairs Alterations & Maintenance of Buildings,Car Park General Repairs,23/06/2016,185879,400,M J Ellis Manufacturing
Cultural & Related,Culture & Heritage,Community and Leisure ,Supplies & Services,Miscellaneous Expenses,Booking Of Acts,09/06/2016,184773,1308.71,Personal data - Data Protection Act 1998
Housing Services,Housing Benefits ,Revenues,Employees,Indirect Employee Expenses,Temporary Staff,02/06/2016,184326,1094.75,Eden Brown Ltd
Cultural & Related,Culture & Heritage,Community and Leisure ,Supplies & Services,Miscellaneous Expenses,Booking Of Acts,09/06/2016,185098,1104.66,Ckp Ltd
Housing Services,Housing Benefits ,Revenues,Employees,Indirect Employee Expenses,Temporary Staff,23/06/2016,185869,1109.25,Eden Brown Ltd
Central Services to the Public,Local Tax Collection,Revenues,Supplies & Services,Services,Professional Fees,30/06/2016,186590,85,Ross & Roberts
Housing Services,Housing Benefits ,Revenues,Employees,Indirect Employee Expenses,Temporary Staff,09/06/2016,184829,1123.75,Eden Brown Ltd
Cultural & Related,Culture & Heritage,Community and Leisure ,Supplies & Services,Catering,Non-Contract Catering,16/06/2016,184983,1124.2,Carlsberg Uk Ltd
Housing Services,Housing Benefits ,Revenues,Supplies & Services,Services,External Training Consultants,01/06/2016,183918,625,Airey Consultancy Services Ltd
Central Services to the Public,Local Tax Collection,Revenues,Supplies & Services,Services,External Training Consultants,01/06/2016,183918,500,Airey Consultancy Services Ltd
Cultural & Related,Recreation & Sport,Community and Leisure ,Supplies & Services,Services,Professional Fees,02/06/2016,184102,1131.5,Blake Morgan Llp
Central Services to the Public,Management & Support Services,Legal & Democratic,Employees,Indirect Employee Expenses,Agency Staff - Waged Posts,02/06/2016,183935,1170,Venn Group Ltd
Environmental & Regulatory,Street Cleansing (not chargeable to Highways),Environmental,Supplies & Services,Services,Training Courses,23/06/2016,184580,1408,Focus Driver Training Ltd
Central Services to the Public,Management & Support Services,Legal & Democratic,Employees,Indirect Employee Expenses,Agency Staff - Waged Posts,16/06/2016,185417,1180,Venn Group Ltd
Central Services to the Public,Management & Support Services,Estates and Economic Development ,Premises related Expenditure,Repairs Alterations & Maintenance of Buildings,Planned Maintenance - Non Est,02/06/2016,184314,1184.84,Basingstoke Fire Protection Ltd
Central Services to the Public,Elections,Legal & Democratic,Supplies & Services,"Printing, Stationery & General Office Expenses",Stationery,02/06/2016,182801,1189.37,Banner Business Services Ltd
External Trading Accounts,Economic Development,Estates and Economic Development ,Premises related Expenditure,Energy Costs,Electricity,23/06/2016,185936,1213.67,Npower
"Highways, Roads & Transport",Highways and roads - maintenance,Plan Pol & Transport,Premises related Expenditure,Repairs Alterations & Maintenance of Buildings,Highways Repairs,22/06/2016,185863,1500,Nationwide Building Society
Central Services to the Public,Management & Support Services,Legal & Democratic,Employees,Indirect Employee Expenses,Agency Staff - Waged Posts,02/06/2016,183934,1270,Venn Group Ltd
Cultural & Related,Open Spaces,Community and Leisure ,Supplies & Services,"Equipment, Furniture & Materials",Purchase Equip + Materials,02/06/2016,183895,1273.77,The Genesis Design Studio Ltd
Cultural & Related,Recreation & Sport,Community and Leisure ,Supplies & Services,Grants and subscriptions,Capital Grants,09/06/2016,185114,1534.5,Picket Twenty Community Association
Planning & Development,Planning Policy,Plan Pol & Transport,Supplies & Services,Grants & Subscriptions,Grants,30/06/2016,186551,1543.45,Hampshire County Council
Central Services to the Public,Management & Support Services,Housing and Environmental Health ,Supplies & Services,Services,Project Consultancy - Policy,16/06/2016,185094,1290,Jenkins Duval Ltd
Central Services to the Public,Management & Support Services,Chief Executive's,Supplies & Services,Grants & Subscriptions,Subscriptions,30/06/2016,185877,1312.5,Lgiu
Planning & Development,Planning Policy,Plan Pol & Transport,Supplies & Services,"Printing, Stationery & General Office Expenses",Photocopying Costs,16/06/2016,185464,1337.14,Ricoh Uk Ltd
Central Services to the Public,Management & Support Services,Finance,Supplies & Services,"Printing, Stationery & General Office Expenses",Postage Costs,02/06/2016,184574,1340.84,Royal Mail
Planning & Development,Economic Development,Estates and Economic Development ,Supplies & Services,Services,Training Courses,02/06/2016,184337,1349,Ucps Learning Ltd
Environmental & Regulatory,Regulatory Services,Housing and Environmental Health ,Supplies & Services,Grants and subscriptions,Capital Grants,22/06/2016,186061,1624.33,Aster Group
Central Services to the Public,Management & Support Services,IT,Supplies & Services,Communications & Computing,Software Maintenance,30/06/2016,186393,1388.53,Pnl Tools Ltd
Cultural & Related,Culture & Heritage,Community and Leisure ,Supplies & Services,"Printing, Stationery & General Office Expenses",Licences / Affiliation Fees,02/06/2016,183916,1391.61,Performing Right Society Ltd
Environmental & Regulatory,Waste management,Environmental,Transport Related Expenditure,Direct Transport Costs,External Garages,23/06/2016,185927,1401.13,Terberg Matec Uk Limited
External Trading Accounts,Economic Development,Estates and Economic Development ,Premises related Expenditure,Energy Costs,Electricity,02/06/2016,184090,1410.23,Npower
Environmental & Regulatory,"Cemetery, Cremation and Mortuary Services",Community and Leisure ,Supplies & Services,Miscellaneous Expenses,National Assist Act Burials,22/06/2016,186060,1695,A H Cheater Ltd Funeral Directors
External Trading Accounts,Economic Development,Estates and Economic Development ,Premises related Expenditure,Energy Costs,Electricity,02/06/2016,184091,1424.17,Npower
Planning & Development,Development Control,Planning & Building,Employees,Indirect Employee Expenses,Temporary Staff,16/06/2016,184989,1430,Oyster Partnership
Central Services to the Public,Management & Support Services,Finance,Supplies & Services,"Printing, Stationery & General Office Expenses",Postage Costs,23/06/2016,185648,1442.64,Whistl Uk Ltd
Central Services to the Public,Local Tax Collection,Revenues,Supplies & Services,Miscellaneous Expenses,All Pay Fees,09/06/2016,184971,1449.34,Allpay Limited
Cultural & Related,Open Spaces,Community and Leisure ,Supplies & Services,"Equipment, Furniture & Materials",Purchase Equip + Materials,02/06/2016,184344,1451,Intratest Ltd
Planning & Development,Development Control,Planning & Building,Employees,Indirect Employee Expenses,Temporary Staff,30/06/2016,186172,1453.2,Oyster Partnership
"Highways, Roads & Transport",Highways and roads - maintenance,Plan Pol & Transport,Premises related Expenditure,Repairs Alterations & Maintenance of Buildings,Highways Repairs,23/06/2016,186043,1456,Blandy & Blandy Llp
Environmental & Regulatory,Regulatory Services,Housing and Environmental Health ,Supplies & Services,Grants and subscriptions,Capital Grants,09/06/2016,185129,1750,1st Choice Stairlifts Ltd
Planning & Development,Development Control,Planning & Building,Supplies & Services,Services,Legal Fees,30/06/2016,185344,1750,Cornerstone Barristers
Central Services to the Public,Management & Support Services,IT,Supplies & Services,Communications & Computing,Computer Hardware,16/06/2016,185548,1476.58,Dell Computer Corporation Ltd
Cultural & Related,Recreation & Sport,Community and Leisure ,Premises related Expenditure,Grounds Maintenance Costs,Gm - Additional Works,09/06/2016,184758,698.9,Kingcombe Aquacare Ltd
Cultural & Related,Open Spaces,Community and Leisure ,Premises related Expenditure,Grounds Maintenance Costs,Gm - Additional Works,09/06/2016,184758,779.3,Kingcombe Aquacare Ltd
Cultural & Related,Recreation & Sport,Community and Leisure ,Supplies & Services,Services,Coaches Fees,09/06/2016,185122,1500,Rubicon Industries Ltd
Planning & Development,Development Control,Planning & Building,Supplies & Services,Miscellaneous Expenses,Planning Appeal Costs,09/06/2016,184807,1500,Personal data - Data Protection Act 1998
Cultural & Related,Open Spaces,Environmental,Transport Related Expenditure,Direct Transport Costs,Repair Materials,09/06/2016,184473,1506.62,T H White Ltd
Cultural & Related,Culture & Heritage,Community and Leisure ,Supplies & Services,Miscellaneous Expenses,Booking Of Acts,16/06/2016,185365,1580,Off The Kerb Productions
Central Services to the Public,Management & Support Services,Housing and Environmental Health ,Supplies & Services,Services,Training Courses,30/06/2016,186391,1581,D C Consulting Ltd
Central Services to the Public,Management & Support Services,IT,Supplies & Services,Communications & Computing,Software Maintenance,16/06/2016,185653,1586.64,Konica Minolta Business Soltns (Uk) Ltd
Central Services to the Public,Management & Support Services,Estates and Economic Development ,Supplies & Services,"Printing, Stationery & General Office Expenses",Licences / Affiliation Fees,30/06/2016,186423,1595.08,Performing Right Society Ltd
Cultural & Related,Culture & Heritage,Estates and Economic Development ,Premises related Expenditure,Repairs Alterations & Maintenance of Buildings,Building Maint - Estates,08/06/2016,184742,1608,Hampshire Printing Services
External Trading Accounts,Business Parks,Estates and Economic Development ,Premises related Expenditure,Repairs Alterations & Maintenance of Buildings,Planned Maintenance - Non Est,16/06/2016,185575,1617.59,Rentokil Initial Uk Ltd
Central Services to the Public,Management & Support Services,IT,Supplies & Services,Communications & Computing,Computer Hardware,30/06/2016,186537,1618.95,Sbl
Cultural & Related,Open Spaces,Environmental,Supplies & Services,Services,Training Courses,09/06/2016,185134,620.61,Nationwide Training Limited
Environmental & Regulatory,Street Cleansing (not chargeable to Highways),Environmental,Supplies & Services,Services,Training Courses,09/06/2016,185134,620.61,Nationwide Training Limited
Environmental & Regulatory,Waste management,Environmental,Supplies & Services,Services,Training Courses,09/06/2016,185134,413.74,Nationwide Training Limited
Central Services,Corporate & Democratic Core,Corporate & Democratic,Supplies & Services,Grants & Subscriptions,Subscriptions,16/06/2016,185070,1665,Eastleigh Borough Council
Planning & Development,Community Development,Community and Leisure ,Supplies & Services,Grants & Subscriptions,Grants,15/06/2016,185561,2000,Pride Of Andover
Planning & Development,Community Development,Community and Leisure ,Supplies & Services,Grants & Subscriptions,Grants,30/06/2016,186658,2000,Andover Town Council
Cultural & Related,Culture & Heritage,Estates and Economic Development ,Premises related Expenditure,Repairs Alterations & Maintenance of Buildings,Planned Maintenance - Non Est,09/06/2016,184739,197.5,Temple Lifts Ltd
Cultural & Related,Culture & Heritage,Estates and Economic Development ,Premises related Expenditure,Repairs Alterations & Maintenance of Buildings,Planned Maintenance - Non Est,09/06/2016,184739,19.25,Temple Lifts Ltd
Central Services to the Public,Management & Support Services,Estates and Economic Development ,Premises related Expenditure,Repairs Alterations & Maintenance of Buildings,Planned Maintenance - Non Est,09/06/2016,184739,790,Temple Lifts Ltd
Cultural & Related,Recreation & Sport,Community and Leisure ,Premises related Expenditure,Repairs Alterations & Maintenance of Buildings,Planned Maintenance - Non Est,09/06/2016,184739,395,Temple Lifts Ltd
Cultural & Related,Recreation & Sport,Community and Leisure ,Premises related Expenditure,Repairs Alterations & Maintenance of Buildings,Planned Maintenance - Non Est,09/06/2016,184739,197.5,Temple Lifts Ltd
Cultural & Related,Culture & Heritage,Community and Leisure ,Premises related Expenditure,Repairs Alterations & Maintenance of Buildings,Planned Maintenance - Non Est,09/06/2016,184739,67.7,Temple Lifts Ltd
Central Services to the Public,Management & Support Services,Estates and Economic Development ,Third Party Payments,Other Establishments,Contract Catering,16/06/2016,185077,1667.46,Edwards And Ward Ltd
Central Services to the Public,Management & Support Services,IT,Supplies & Services,Communications & Computing,Software Maintenance,23/06/2016,185875,1677,Voodoo Technology Ltd
Environmental & Regulatory,Regulatory Services,Housing and Environmental Health ,Supplies & Services,Miscellaneous Expenses,Kennel fees,16/06/2016,184974,1707.48,Newbury Lodge Kennels
Planning & Development,Economic Development,Estates and Economic Development ,Supplies & Services,Grants & Subscriptions,Grants,30/06/2016,186392,2056.48,New Forest District Council
"Highways, Roads & Transport",Parking Services,Plan Pol & Transport,Premises related Expenditure,Repairs Alterations & Maintenance of Buildings,Car Parks - Signs + Lines,30/06/2016,186197,1714,Signway Supplies (Datchet Ltd)
Housing Services,"Housing strategy, advice and enabling",Housing and Environmental Health ,Supplies & Services,Communications & Computing,Computer Hardware,09/06/2016,185090,1731.25,Abritas Ltd
Central Services to the Public,Local Tax Collection,Revenues,Supplies & Services,Services,Professional Fees,02/06/2016,184578,11.61,Ross & Roberts
Planning & Development,Development Control,Planning & Building,Supplies & Services,Services,Project Consultancy - Policy,23/06/2016,185903,1750,Personal data - Data Protection Act 1998
Planning & Development,Development Control,Planning & Building,Supplies & Services,Services,Project Consultancy - Policy,09/06/2016,184556,1750,Valuation Office Agency
Central Services to the Public,Elections,Legal & Democratic,Supplies & Services,"Printing, Stationery & General Office Expenses",Postage Costs,30/06/2016,186547,0.54,Royal Mail
Planning & Development,Development Control,Planning & Building,Supplies & Services,Miscellaneous Expenses,Planning Appeal Costs,09/06/2016,184785,2127.5,Cornerstone Barristers
Planning & Development,Development Control,Planning & Building,Employees,Indirect Employee Expenses,Temporary Staff,30/06/2016,185933,1782,Oyster Partnership
Environmental & Regulatory,Waste management,Environmental,Employees,Indirect Employee Expenses,Agency Staff - Waged Posts,09/06/2016,184966,1810.81,365 Supply Ltd
Planning & Development,Development Control,Planning & Building,Employees,Indirect Employee Expenses,Temporary Staff,16/06/2016,184991,1815.3,Oyster Partnership
Environmental & Regulatory,Regulatory Services,Housing and Environmental Health ,Supplies & Services,Grants and subscriptions,Capital Grants,23/06/2016,186194,2185.1,Lifestyle Solutions
"Highways, Roads & Transport",Public Transport,Plan Pol & Transport,Third Party Payments,Transport Operators in Respect of Concessionary Fares,Voluntary Orgs Reimbursement,16/06/2016,185164,2189.8,Andover Neighbourcare
Cultural & Related,Culture & Heritage,Community and Leisure ,Supplies & Services,Miscellaneous Expenses,Booking Of Acts,02/06/2016,184355,1831.34,Westenders Partnership
Housing Services,"Housing strategy, advice and enabling",Housing and Environmental Health ,Supplies & Services,Communications & Computing,Computer Hardware,09/06/2016,184769,2066,Abritas Ltd
Environmental & Regulatory,Waste management,Environmental,Employees,Indirect Employee Expenses,Agency Staff - Waged Posts,16/06/2016,185584,2072.98,365 Supply Ltd
Central Services,Corporate & Democratic Core,Corporate & Democratic,Supplies & Services,Communications & Computing,Computer Software,16/06/2016,185376,2105.64,Advanced Business Solutions
Central Services to the Public,Management & Support Services,Chief Executive's,Supplies & Services,"Printing, Stationery & General Office Expenses",Photocopying Costs,02/06/2016,184575,2170.74,Ricoh Uk Ltd
"Highways, Roads & Transport",Parking Services,Plan Pol & Transport,Premises related Expenditure,Energy Costs,Electricity,23/06/2016,185855,2190.89,Southern Electric
Planning & Development,Development Control,Planning & Building,Supplies & Services,Services,Project Consultancy - Policy,23/06/2016,185904,2250,Personal data - Data Protection Act 1998
Central Services to the Public,Management & Support Services,Estates and Economic Development ,Premises related Expenditure,Repairs Alterations & Maintenance of Buildings,Building Maint - Non Estates,09/06/2016,185128,2329.62,Btu Installation & Maintenance Ltd
Central Services to the Public,Management & Support Services,Environmental,Transport Related Expenditure,Direct Transport Costs,Diesel,23/06/2016,185432,2337.25,Wp Group Limited
Environmental & Regulatory,Waste management,Environmental,Employees,Indirect Employee Expenses,Agency Staff - Waged Posts,09/06/2016,184746,2361.79,365 Supply Ltd
Central Services to the Public,Management & Support Services,Environmental,Transport Related Expenditure,Direct Transport Costs,Diesel,09/06/2016,183901,2362.66,Wp Group Limited
Cultural & Related,Open Spaces,Community and Leisure ,Supplies & Services,"Equipment, Furniture & Materials",Purchase Equip + Materials,09/06/2016,184500,2367.2,Downs View Nurseries Ltd
Cultural & Related,Culture & Heritage,Community and Leisure ,Supplies & Services,Miscellaneous Expenses,Booking Of Acts,09/06/2016,184982,2862.79,Individual Entertainment Ltd
Central Services to the Public,Management & Support Services,Environmental,Transport Related Expenditure,Direct Transport Costs,Diesel,09/06/2016,184762,2209.13,Wp Group Limited
Central Services to the Public,Management & Support Services,Environmental,Transport Related Expenditure,Direct Transport Costs,Red Derv,09/06/2016,184762,209.35,Wp Group Limited
Central Services to the Public,Local Tax Collection,Revenues,Supplies & Services,Services,Professional Fees,30/06/2016,186557,2400,Inform Cpi Ltd
Cultural & Related,Open Spaces,Community and Leisure ,Premises related Expenditure,Grounds Maintenance Costs,Gm - Additional Works,16/06/2016,185571,2400,Personal data - Data Protection Act 1998
Environmental & Regulatory,Waste management,Environmental,Employees,Indirect Employee Expenses,Agency Staff - Waged Posts,09/06/2016,184965,2433.74,365 Supply Ltd
Planning & Development,Economic Development,Estates and Economic Development ,Supplies & Services,Grants & Subscriptions,Grants,09/06/2016,184759,2443.8,Heartflood Ltd
Central Services to the Public,Management & Support Services,Estates and Economic Development ,Supplies & Services,"Equipment, Furniture & Materials",Purchase Materials (Job Cost),09/06/2016,185081,2475,Woosh Washrooms
Planning & Development,Development Control,Planning & Building,Supplies & Services,Miscellaneous Expenses,Planning Appeal Costs,29/06/2016,186048,2580,Sharpe Pritchard
Cultural & Related,Culture & Heritage,Community and Leisure ,Supplies & Services,Miscellaneous Expenses,Promotions / Special Events,23/06/2016,186037,3004,J D Printing Services Ltd
Cultural & Related,Culture & Heritage,Community and Leisure ,Supplies & Services,Miscellaneous Expenses,Booking Of Acts,29/06/2016,186559,2513.66,Direct Music Management Ltd
Planning & Development,Economic Development,Estates and Economic Development ,Supplies & Services,Grants & Subscriptions,Grants,30/06/2016,186580,3100,Hampshire County Council
Central Services to the Public,Management & Support Services,Estates and Economic Development ,Premises related Expenditure,Repairs Alterations & Maintenance of Buildings,Estates premises costs - AMP,16/06/2016,185576,2646,Purbeck Civil Engineering Limited
Planning & Development,Development Control,Planning & Building,Supplies & Services,"Printing, Stationery & General Office Expenses",Stationery,16/06/2016,185165,933.84,Banner Business Services Ltd
Planning & Development,Development Control,Planning & Building,Supplies & Services,"Printing, Stationery & General Office Expenses",Print Consumables,16/06/2016,185165,1786.21,Banner Business Services Ltd
Central Services to the Public,Elections,Legal & Democratic,Supplies & Services,"Printing, Stationery & General Office Expenses",Postage Costs,23/06/2016,186057,1.62,Royal Mail
Central Services to the Public,Management & Support Services,Environmental,Transport Related Expenditure,Direct Transport Costs,Diesel,09/06/2016,184065,2587.8,Wp Group Limited
Central Services to the Public,Management & Support Services,Environmental,Transport Related Expenditure,Direct Transport Costs,Red Derv,09/06/2016,184065,238.8,Wp Group Limited
Cultural & Related,Open Spaces,Community and Leisure ,Supplies & Services,"Equipment, Furniture & Materials",Purchase Equip + Materials,09/06/2016,184501,2811.12,Downs View Nurseries Ltd
Central Services to the Public,Management & Support Services,Finance,Supplies & Services,Services,Insurance ,30/06/2016,186555,3383.55,Aon Uk Ltd
Central Services to the Public,Management & Support Services,Finance,Supplies & Services,"Printing, Stationery & General Office Expenses",Postage Costs,23/06/2016,186187,161.24,Royal Mail
Environmental & Regulatory,Waste management,Environmental,Employees,Indirect Employee Expenses,Agency Staff - Waged Posts,16/06/2016,185583,2870.32,365 Supply Ltd
Environmental & Regulatory,Regulatory Services,Housing and Environmental Health ,Supplies & Services,Grants and subscriptions,Capital Grants,02/06/2016,184572,3587.71,S & J Building Services (Uk) Ltd
Planning & Development,Planning Policy,Plan Pol & Transport,Supplies & Services,Services,Project Consultancy - Policy,02/06/2016,184341,3000,Dixon Searle Partnership Ltd
Central Services to the Public,Management & Support Services,Environmental,Transport Related Expenditure,Direct Transport Costs,Diesel,23/06/2016,185866,2777.29,Wp Group Limited
Central Services to the Public,Management & Support Services,Environmental,Transport Related Expenditure,Direct Transport Costs,Red Derv,23/06/2016,185866,298.69,Wp Group Limited
Cultural & Related,Culture & Heritage,Estates and Economic Development ,Premises related Expenditure,Repairs Alterations & Maintenance of Buildings,Estates premises costs - AMP,09/06/2016,184814,3075,Fernden Construction (Winchester) Ltd
Environmental & Regulatory,Regulatory Services,Housing and Environmental Health ,Supplies & Services,Grants and subscriptions,Capital Grants,30/06/2016,186657,3806.4,Personal data - Data Protection Act 1998
Central Services to the Public,Management & Support Services,Environmental,Transport Related Expenditure,Direct Transport Costs,Diesel,09/06/2016,184763,3179.88,Wp Group Limited
Central Services to the Public,Elections,Legal & Democratic,Premises related Expenditure,Rents,Premises Hire,09/06/2016,184761,3857.75,Valley Leisure Ltd
Environmental & Regulatory,Regulatory Services,Housing and Environmental Health ,Supplies & Services,Grants and subscriptions,Capital Grants,09/06/2016,185131,3872.98,Prism Medical Uk
Central Services to the Public,Management & Support Services,IT,Supplies & Services,Communications & Computing,Communication Links,16/06/2016,185162,3252,Virgin Media Payments Ltd
Environmental & Regulatory,Regulatory Services,Housing and Environmental Health ,Supplies & Services,Grants and subscriptions,Capital Grants,09/06/2016,185153,3922,Bentley Mobility Services
"Highways, Roads & Transport",Highways and roads - maintenance,Plan Pol & Transport,Premises related Expenditure,Repairs Alterations & Maintenance of Buildings,Highways Repairs,30/06/2016,186196,3314.25,Signway Supplies (Datchet Ltd)
Environmental & Regulatory,Regulatory Services,Housing and Environmental Health ,Supplies & Services,Grants and subscriptions,Capital Grants,23/06/2016,186219,3998.4,S & J Building Services (Uk) Ltd
Central Services to the Public,Management & Support Services,Environmental,Transport Related Expenditure,Direct Transport Costs,Diesel,30/06/2016,186221,3100.3,Wp Group Limited
Central Services to the Public,Management & Support Services,Environmental,Transport Related Expenditure,Direct Transport Costs,Red Derv,30/06/2016,186221,294.84,Wp Group Limited
Environmental & Regulatory,Regulatory Services,Housing and Environmental Health ,Supplies & Services,Grants and subscriptions,Capital Grants,16/06/2016,185672,4031.44,S & J Building Services (Uk) Ltd
Environmental & Regulatory,Regulatory Services,Housing and Environmental Health ,Supplies & Services,Grants and subscriptions,Capital Grants,16/06/2016,185673,4136,Hampshire Mobility Services
Central Services to the Public,Management & Support Services,Environmental,Transport Related Expenditure,Direct Transport Costs,Diesel,09/06/2016,183903,3450.4,Wp Group Limited
Central Services to the Public,Management & Support Services,Finance,Supplies & Services,Services,Project Consultancy - Policy,09/06/2016,184789,3500,Capita Treasury Solutions Ltd
Central Services to the Public,Elections,Legal & Democratic,Supplies & Services,"Printing, Stationery & General Office Expenses",External Printing,09/06/2016,184961,4369.26,Financial Data Management Plc
Cultural & Related,Open Spaces,Environmental,Transport Related Expenditure,Direct Transport Costs,Tyres,16/06/2016,185073,172.3,Ats Euromaster Limited
Environmental & Regulatory,Waste management,Environmental,Transport Related Expenditure,Direct Transport Costs,Tyres,16/06/2016,185073,2917.74,Ats Euromaster Limited
Environmental & Regulatory,Waste management,Environmental,Transport Related Expenditure,Direct Transport Costs,Tyres,16/06/2016,185073,153,Ats Euromaster Limited
Central Services to the Public,Management & Support Services,Environmental,Transport Related Expenditure,Direct Transport Costs,Tyres,16/06/2016,185073,496.2,Ats Euromaster Limited
Cultural & Related,Recreation & Sport,Community and Leisure ,Third Party Payments,Other Establishments,ALC Management Contract-TVL,16/06/2016,184448,3916.67,Valley Leisure Ltd
Central Services to the Public,Management & Support Services,Estates and Economic Development ,Supplies & Services,Communications & Computing,Software Maintenance,02/06/2016,183749,854,Bentley Systems International Ltd
Central Services to the Public,Management & Support Services,IT,Supplies & Services,Communications & Computing,Software Maintenance,02/06/2016,183749,1526,Bentley Systems International Ltd
"Highways, Roads & Transport",Highways and roads - maintenance,Plan Pol & Transport,Supplies & Services,Communications & Computing,Software Maintenance,02/06/2016,183749,2562,Bentley Systems International Ltd
Environmental & Regulatory,Regulatory Services,Housing and Environmental Health ,Supplies & Services,Grants and subscriptions,Capital Grants,30/06/2016,186656,4973.75,Personal data - Data Protection Act 1998
External Trading Accounts,Business Parks,Estates and Economic Development ,Premises related Expenditure,Rents,Rents,09/06/2016,184774,5000,Carter Jonas Service Company
Central Services to the Public,Management & Support Services,Chief Executive's,Transport Related Expenditure,Contract Hire and Operating Leases,Officer lease cars,09/06/2016,184475,5057.53,Volkswagen Group Leasing
Central Services to the Public,Management & Support Services,Environmental,Transport Related Expenditure,Direct Transport Costs,Diesel,23/06/2016,185867,4218.52,Wp Group Limited
Central Services to the Public,Management & Support Services,Environmental,Transport Related Expenditure,Direct Transport Costs,Diesel,23/06/2016,185431,4016.34,Wp Group Limited
Central Services to the Public,Management & Support Services,Environmental,Transport Related Expenditure,Direct Transport Costs,Red Derv,23/06/2016,185431,241.19,Wp Group Limited
Central Services to the Public,Management & Support Services,Environmental,Transport Related Expenditure,Direct Transport Costs,Diesel,09/06/2016,184106,3881.7,Wp Group Limited
Central Services to the Public,Management & Support Services,Environmental,Transport Related Expenditure,Direct Transport Costs,Red Derv,09/06/2016,184106,398,Wp Group Limited
Planning & Development,Planning Policy,Plan Pol & Transport,Supplies & Services,Services,Project Consultancy - Policy,23/06/2016,185868,4300,The Environmental Project Consulting Group
Environmental & Regulatory,Waste management,Environmental,Supplies & Services,Grants & Subscriptions,Subscriptions,09/06/2016,184803,5285,Hampshire County Council
Central Services to the Public,Management & Support Services,Finance,Supplies & Services,"Printing, Stationery & General Office Expenses",Postage Costs,16/06/2016,185159,5371.89,Pitney Bowes Limited
Central Services to the Public,Local Tax Collection,Revenues,Supplies & Services,Services,Professional Fees,02/06/2016,184111,4500,Inform Cpi Ltd
Cultural & Related,Recreation & Sport,Community and Leisure ,Supplies & Services,Services,Professional Fees,30/06/2016,186081,5000,Rpt Consulting Ltd
Cultural & Related,Recreation & Sport,Community and Leisure ,Supplies & Services,Grants and subscriptions,Capital Grants,09/06/2016,185113,6119.84,Sherfield English Recreation Project 2000
Central Services to the Public,Local Land Charges,Legal & Democratic,Supplies & Services,Miscellaneous Expenses,Land Charges Fees,16/06/2016,185637,6396,Hampshire County Council
External Trading Accounts,Property Investments,Estates and Economic Development ,Supplies & Services,Services,Professional Fees,30/06/2016,186645,5364.82,Denton Ukmea Llp
Cultural & Related,Open Spaces,Community and Leisure ,Premises related Expenditure,Grounds Maintenance Costs,Gm - Additional Works,02/06/2016,183957,407.86,Gripdeck Uk Llp
Cultural & Related,Open Spaces,Community and Leisure ,Premises related Expenditure,Repairs Alterations & Maintenance of Buildings,Estates premises costs - AMP,02/06/2016,183957,5000,Gripdeck Uk Llp
Central Services to the Public,Management & Support Services,IT,Support Services,IT,IT Hardware costs,09/06/2016,182787,5488.34,Dell Computer Corporation Ltd
Central Services to the Public,Management & Support Services,IT,Supplies & Services,Communications & Computing,Computer Software,16/06/2016,185398,5500,Richmond Systems
Cultural & Related,Open Spaces,Environmental,Supplies & Services,"Equipment, Furniture & Materials",Purchase Equip + Materials,16/06/2016,185547,6955,A J & R Scambler &  Sons Ltd
Housing Services,"Housing strategy, advice and enabling",Housing and Environmental Health ,Supplies & Services,Grants & Subscriptions,Grants,16/06/2016,185144,7189,Community Action Hampshire
Environmental & Regulatory,Regulatory Services,Housing and Environmental Health ,Supplies & Services,Grants and subscriptions,Capital Grants,09/06/2016,185152,8190.01,Prism Medical Uk
Environmental & Regulatory,Waste management,Environmental,Supplies & Services,Miscellaneous Expenses,Recycling Bank Emptying,02/06/2016,184479,6901.52,Fcc Recycling (Uk) Ltd
Cultural & Related,Open Spaces,Community and Leisure ,Premises related Expenditure,Repairs Alterations & Maintenance of Buildings,Estates premises costs - AMP,16/06/2016,185133,6986.1,Rocon Contractors Ltd
Cultural & Related,Recreation & Sport,Community and Leisure ,Third Party Payments,Other Establishments,ALC Management Contract-TVL,16/06/2016,184447,8166.67,Valley Leisure Ltd
Central Services to the Public,Management & Support Services,Estates and Economic Development ,Third Party Payments,Other Establishments,Private Contractors,16/06/2016,185358,2875,Fernden Construction (Winchester) Ltd
Cultural & Related,Open Spaces,Community and Leisure ,Premises related Expenditure,Repairs Alterations & Maintenance of Buildings,Estates premises costs - AMP,16/06/2016,185358,5875,Fernden Construction (Winchester) Ltd
Central Services to the Public,Management & Support Services,Finance,Supplies & Services,"Printing, Stationery & General Office Expenses",Postage Costs,16/06/2016,185369,34.61,Royal Mail
"Highways, Roads & Transport",Highways and roads - maintenance,Plan Pol & Transport,Supplies & Services,"Equipment, Furniture & Materials",Purchase Equip + Materials,16/06/2016,182287,9126,Signway Supplies (Datchet Ltd)
Cultural & Related,Recreation & Sport,Community and Leisure ,Supplies & Services,Services,Professional Fees,23/06/2016,185883,10685.5,Blake Morgan Llp
Central Services to the Public,Local Tax Collection,Revenues,Supplies & Services,Communications & Computing,Computer Software,23/06/2016,185662,12388.66,Northgate Public Services Uk Ltd
Central Services to the Public,Emergency Planning,Corporate & Democratic,Supplies & Services,Miscellaneous Expenses,Emergency Planning Costs,30/06/2016,186076,19339,Hampshire County Council
Planning & Development,Planning Policy,Plan Pol & Transport,Supplies & Services,Services,Project Consultancy - Policy,09/06/2016,179718,20164.57,Hampshire County Council
Central Services to the Public,Management & Support Services,Estates and Economic Development ,Third Party Payments,Private contractors,Main Contractor Costs,16/06/2016,185387,27135,Temple Lifts Ltd
Housing Services,"Housing strategy, advice and enabling",Housing and Environmental Health ,Supplies & Services,Communications & Computing,Computer Hardware,09/06/2016,184765,27480,Abritas Ltd
External Trading Accounts,Business Parks,Estates and Economic Development ,Supplies & Services,Services,Professional Fees,02/06/2016,183972,38881.43,Kier Ventures Ltd
Environmental & Regulatory,Regulatory Services,Estates and Economic Development ,Premises related Expenditure,Cleaning and domestic supplies,Contract Cleaning - Non Estates,09/06/2016,184790,13651.61,Friends Life Company Ltd
"Highways, Roads & Transport",Parking Services,Plan Pol & Transport,Supplies & Services,Services,Professional Fees,09/06/2016,184790,35104.14,Friends Life Company Ltd
Cultural & Related,Open Spaces,Plan Pol & Transport,Third Party Payments,Private contractors,Main Contractor Costs,30/06/2016,186678,42989.57,Caroway Building & Civil Engineering
External Trading Accounts,Property Investments,Estates and Economic Development ,Supplies & Services,Services,Legal Fees,02/06/2016,184584,46500,Real Estate Strategies Ltd
